{"text_format":"1","workbook":"xlsx","n_sheets":1,"sheets":["Presupuesto Proyecto Ba"],"not_rendered":{"charts":0,"images":2,"macros":1,"external_links":0,"defined_names":5,"comments":1,"pivot_tables":0},"unopened":[],"bounds":{"document_bytes":16777216,"sheet_cells":100000,"rows_first":2000,"rows_last":500,"rows_between":2000,"halvings":0,"cell_chars":16384,"cell_head_chars":4096},"cells_cut":0,"cells_raw":0,"read":"whole","date_system":"1900"}

{"sheet":"Presupuesto Proyecto Ba","index":0,"n_rows":155,"n_cols":7,"rows_kept":155,"cut":false,"hidden":false,"merged":[[3,1,3,6]]}
[null,null,null,null,null,null,"Documento básico 3"]
[null,null,null,null,null,null,"Ámbito temático \"B\": Intercooperación"]
["Subvencions de l'Ajuntament de Barcelona per a",null,null,null,null,null,"Modalidad \"a\": Proyectos promovidos por entidades representativas y referentes de la ESS o de las finanzas éticas  para"]
["la promoció i reforç de l'economia social i solidària 2019","  entidades de segundo y tercer nivel, que contribuyan al logro del Plan de Impulso de la Economía Social y Solidaria 2016-2019"]
[null,null,null,null,null,null,"Se deben rellenar las celdas en blanco, y añadir filas en caso que sea necesario."]
[null,null,null,null,null,null,"Consultar anotaciones a pie de página antes de completar los datos."]
[null,null,null,null,null," "]
["DATOS BÁSICOS"]
["Nombre de la persona jurídica/física",null,null,null,null,"  "]
["NIF de la persona jurídica/física"]
["Denominación del proyecto"]
["Importe total del proyecto"]
["Importe imputable a la subvención municipal"]
["% de l’Importe solicitado a la subvención municipal a cambiar en REC (Recurs Econòmic Ciutadà) "]
["Importe de l'aportació / Cofinanciación de la entidad"]
["% de l'Importe solicitado respecto al total del proyecto",{"$f":"B13/B12","v":{"$error":"#DIV/0!"}}]
["Fecha de inicio del proyecto subvencionado (dd/mm/aaaa)"]
["Fecha de fin del proyecto subvencionado (dd/mm/aaaa)"]
[]
["PREVISIÓN DE GASTOS DEL PROYECTO"]
[]
["Partidas","Importe total del proyecto","Importe imputable a la subvención municipal","Importe de l'aportació / Cofinanciación de la entidad"]
["D.1  Retribuciones y seguredad social IRPF (régimen general o régimen de autónomos) del personal propio vinculado al proyecto.",{"$f":"SUM(DespesesProjecte[[#This Row],[Importe imputable a la subvención municipal]],DespesesProjecte[[#This Row],[Importe de l''aportació / Cofinanciación de la entidad]])","v":0},{"$f":"SUM(C24:C28)","v":0},{"$f":"SUM(D24:D28)","v":0}]
[]
[]
[]
[]
[]
["TOTAL DE GASTOS DE PERSONAL (Máx 25% del importe imputable a la subvención municipal)",{"$f":"B23","v":0},{"$f":"C23","v":0},{"$f":"D23","v":0}]
["D2.  Trabajos realizados por profesionales y empresas externas directacmente vinculadas al acompañamiento de procesos de la entidad y con sus asociadas",{"$f":"SUM(DespesesProjecte[[#This Row],[Importe imputable a la subvención municipal]],DespesesProjecte[[#This Row],[Importe de l''aportació / Cofinanciación de la entidad]])","v":0},{"$f":"SUM(C31:C35)","v":0},{"$f":"SUM(D31:D35)","v":0}]
[]
[]
[]
[]
[]
["D3.  Alquiler de bienes muebles/inmuebles directamente vinculados al proyecto.",{"$f":"SUM(DespesesProjecte[[#This Row],[Importe imputable a la subvención municipal]],DespesesProjecte[[#This Row],[Importe de l''aportació / Cofinanciación de la entidad]])","v":0},{"$f":"SUM(C37:C41)","v":0},{"$f":"SUM(D37:D41)","v":0}]
[]
[]
[]
[]
[]
["D4.  Adquisición de materiales y bienes consumibles íntegramente imputables al proyecto.",{"$f":"SUM(DespesesProjecte[[#This Row],[Importe imputable a la subvención municipal]],DespesesProjecte[[#This Row],[Importe de l''aportació / Cofinanciación de la entidad]])","v":0},{"$f":"SUM(C43:C47)","v":0},{"$f":"SUM(D43:D47)","v":0}]
[]
[]
[]
[]
[]
["D5.  Publicidad y propaganda de las actividades vinculadas al proyecto.",{"$f":"SUM(DespesesProjecte[[#This Row],[Importe imputable a la subvención municipal]],DespesesProjecte[[#This Row],[Importe de l''aportació / Cofinanciación de la entidad]])","v":0},{"$f":"SUM(C49:C53)","v":0},{"$f":"SUM(D49:D53)","v":0}]
[]
[]
[]
[]
[]
["D6.  Viajes y desplazamientos imputables a las actividades del proyecto.",{"$f":"SUM(DespesesProjecte[[#This Row],[Importe imputable a la subvención municipal]],DespesesProjecte[[#This Row],[Importe de l''aportació / Cofinanciación de la entidad]])","v":0},{"$f":"SUM(C55:C59)","v":0},{"$f":"SUM(D55:D59)","v":0}]
[]
[]
[]
[]
[]
["D7.  Gastos del informe de auditoria, cuando sea obligatoria su presentación por el importe de la subvención. ",{"$f":"SUM(DespesesProjecte[[#This Row],[Importe imputable a la subvención municipal]],DespesesProjecte[[#This Row],[Importe de l''aportació / Cofinanciación de la entidad]])","v":0},{"$f":"SUM(C61:C65)","v":0},{"$f":"SUM(D61:D65)","v":0}]
[]
[]
[]
[]
[]
["D8.  Otros gastos que de manera justificada y por la tipologia del proyecto puedan imputarse directamente al proyecto.",{"$f":"SUM(DespesesProjecte[[#This Row],[Importe imputable a la subvención municipal]],DespesesProjecte[[#This Row],[Importe de l''aportació / Cofinanciación de la entidad]])","v":0},{"$f":"SUM(C67:C71)","v":0},{"$f":"SUM(D67:D71)","v":0}]
[]
[]
[]
[]
[]
["TOTAL DE OTROS GASTOS DIRECTOS",{"$f":"SUM(B30,B36,B42,B48,B54,B60,B66)","v":0},{"$f":"SUM(C30,C36,C42,C48,C54,C60,C66)","v":0},{"$f":"SUM(D30,D36,D42,D48,D54,D60,D66)","v":0}]
["TOTAL GASTOS DIRECTOS (los que se identifiquen directament con el proyecto)",{"$f":"SUM(B29,B72)","v":0},{"$f":"SUM(C29,C72)","v":0},{"$f":"SUM(D29,D72)","v":0}]
["I1. Personal de soporte al proyecto (Nóminas y seguridad social)",{"$f":"SUM(DespesesProjecte[[#This Row],[Importe imputable a la subvención municipal]],DespesesProjecte[[#This Row],[Importe de l''aportació / Cofinanciación de la entidad]])","v":0},{"$f":"SUM(C75:C79)","v":0},{"$f":"SUM(D75:D79)","v":0}]
[]
[]
[]
[]
[]
["I.2  Seguros",{"$f":"SUM(DespesesProjecte[[#This Row],[Importe imputable a la subvención municipal]],DespesesProjecte[[#This Row],[Importe de l''aportació / Cofinanciación de la entidad]])","v":0},{"$f":"SUM(C81:C85)","v":0},{"$f":"SUM(D81:D85)","v":0}]
[]
[]
[]
[]
[]
["I.3  Amortitzación",{"$f":"SUM(DespesesProjecte[[#This Row],[Importe imputable a la subvención municipal]],DespesesProjecte[[#This Row],[Importe de l''aportació / Cofinanciación de la entidad]])","v":0},{"$f":"SUM(C87:C91)","v":0},{"$f":"SUM(D87:D91)","v":0}]
[]
[]
[]
[]
[]
["I.4  Alquiler de bienes inmuebles",{"$f":"SUM(DespesesProjecte[[#This Row],[Importe imputable a la subvención municipal]],DespesesProjecte[[#This Row],[Importe de l''aportació / Cofinanciación de la entidad]])","v":0},{"$f":"SUM(C93:C97)","v":0},{"$f":"SUM(D93:D97)","v":0}]
[]
[]
[]
[]
[]
["I.5  Adquisición  de materiales y bienes consumibles parcialmente imputables al proyecto",{"$f":"SUM(DespesesProjecte[[#This Row],[Importe imputable a la subvención municipal]],DespesesProjecte[[#This Row],[Importe de l''aportació / Cofinanciación de la entidad]])","v":0},{"$f":"SUM(C99:C103)","v":0},{"$f":"SUM(D99:D103)","v":0}]
[]
[]
[]
[]
[]
["I.6  Mantenimiento de edificios i/o instalaciones",{"$f":"SUM(DespesesProjecte[[#This Row],[Importe imputable a la subvención municipal]],DespesesProjecte[[#This Row],[Importe de l''aportació / Cofinanciación de la entidad]])","v":0},{"$f":"SUM(C105:C109)","v":0},{"$f":"SUM(D105:D109)","v":0}]
[]
[]
[]
[]
[]
["I.7  Comunicaciones (teléfono, correos, conexión a internet)",{"$f":"SUM(DespesesProjecte[[#This Row],[Importe imputable a la subvención municipal]],DespesesProjecte[[#This Row],[Importe de l''aportació / Cofinanciación de la entidad]])","v":0},{"$f":"SUM(C111:C115)","v":0},{"$f":"SUM(D111:D115)","v":0}]
[]
[]
[]
[]
[]
["I.8  Gastos financieros",{"$f":"SUM(DespesesProjecte[[#This Row],[Importe imputable a la subvención municipal]],DespesesProjecte[[#This Row],[Importe de l''aportació / Cofinanciación de la entidad]])","v":0},{"$f":"SUM(C117:C121)","v":0},{"$f":"SUM(D117:D121)","v":0}]
[]
[]
[]
[]
[]
["I.9  Suministros",{"$f":"SUM(DespesesProjecte[[#This Row],[Importe imputable a la subvención municipal]],DespesesProjecte[[#This Row],[Importe de l''aportació / Cofinanciación de la entidad]])","v":0},{"$f":"SUM(C123:C127)","v":0},{"$f":"SUM(D123:D127)","v":0}]
[]
[]
[]
[]
[]
["I.10   Trabajos realizados por otras empresas, parcialmente imputables a al proyecto (limpieza, seguridad...)",{"$f":"SUM(DespesesProjecte[[#This Row],[Importe imputable a la subvención municipal]],DespesesProjecte[[#This Row],[Importe de l''aportació / Cofinanciación de la entidad]])","v":0},{"$f":"SUM(C129:C133)","v":0},{"$f":"SUM(D129:D133)","v":0}]
[]
[]
[]
[]
[]
["TOTAL GASTOS INDIRECTOS (se podran asignara la proyecto haciendo uso de un porcentaje de asignación) - Máximo 10% del importe imputable a la subvención municipal",{"$f":"SUM(B74,B80,B86,B92,B98,B104,B110,B116,B122,B128)","v":0},{"$f":"SUM(C74,C80,C86,C92,C98,C104,C110,C116,C122,C128)","v":0},{"$f":"SUM(D74,D80,D86,D92,D98,D104,D110,D116,D122,D128)","v":0}]
["TOTAL DE GASTOS PREVISTOS",{"$f":"SUM(B134,B73)","v":0},{"$f":"SUM(C134,C73)","v":0},{"$f":"SUM(D134,D73)","v":0}]
[]
[]
["1.  La cuantía de la subvención otorgada no superará el 80% del gasto total del proyecto a subvencionar. "]
["2.  El importe máximo de subvención para la modalidad \"a\" del ámbito temático de Intercooperación (Ba) es de 35.000 €."]
["3.  En caso que la solicitud presentada sobrepase el importe máximo, se considerará como importe solicitado el máximo de lo establecido en la convocatoria. "]
["4.  Se limita a un  máximo del 25%  el importe de la subvención para gastos de personal propio que participa de forma directa y debidamente en el proyecto."]
["5.  Los gastos indirectos imputados al proyecto detallados, no podran superar el 10% del importe de la subvención. "]
["6.  El carácter subvencionable del gasto de amortización estará sujeto a las condiciones siguientes:"]
["- Que las subvenciones no hayan contribuidio a la compra de bienes."]
["- Que la amortitzación se calcula de conformidad con las normas de compatibilidad generalmente aceptadas. "]
["- Que el coste se refiera al periodo subvencionable."]
["7.  Cuando algún gasto sea superior a 12.000€ sin IVA, en el caso de prestaciones de servicios o libramiento de bienes, y para aquellos gastos de más de 30.000 €, sin IVA,"]
["      en el caso de ejecución de obras, tendrán que incorporar tres presupuestos solicitados, y argumentar el motivo de la adjudicación, en el caso de no ser la propuesta más ventajosa económicamente."]
["8. En ningún caso se considerarán gastos subvencionables:"]
["- Los impuestos indirectos cuando sean susceptibles de recuperación o compensación, ni los impuestos sobre la renta. "]
["- Los gastos de inversión, incluidas las adquisiciones de bienes muebles. "]
["- Los gastos realizados con fecha anterior al inicio del proyecto y fecha posterior a la fecha de finalización del proyecto. "]
["- Otros gastos Que se indiquen en la convocatoria."]
["9. Para las subvenciones otorgadas por importe igual o superior a 20.000 € es necessario un informe de auditoría para la justificación. "]
["10. El importe de este informe se considera un gasto subvencionable, con un límite máximo de 1.500 €."]